[Event "Czech Youth Championship Open 2023"]
[Site "Teplice"]
[Date "2023.03.15"]
[Round "6.2"]
[White "Juracak, David"]
[Black "Pavlis, Matej"]
[Result "0-1"]
[ECO "A46"]
[WhiteElo "1820"]
[BlackElo "1868"]
[Annotator "NA RC COMBH"]
[PlyCount "94"]
[EventDate "2023.03.09"]
[EventType "swiss"]
[EventCountry "CZE"]
[SourceTitle "playchess.com"]
[Source "ChessBase"]
[SourceQuality "1"]
[TimeControl "5400+30"]

1. d4 {[%emt 0:00:02]} Nf6 {[%emt 0:00:18]} 2. Nf3 {[%emt 0:00:08]} c5 {[%emt 0:00:05]} 3. e3 {[%emt 0:03:57]} g6 {[%emt 0:01:02]} 4. c4 {[%emt 0:00:53]} Bg7 {[%emt 0:00:40]} 5. Nc3 {[%emt 0:00:06]} cxd4 {[%emt 0:00:33]} 6. exd4 {[%emt 0:00:14]} d5 {[%emt 0:00:05]} 7. Bg5 {[%emt 0:02:26]} dxc4 {[%emt 0:03:26]} 8. Bxc4 {[%emt 0:00:54]} O-O {[%emt 0:00:08]} 9. h3 {[%emt 0:01:50] was the old line (9.0-0).} Qb6 {[%emt 0:02:09] [#]} 10. Qe2 $146 {[%emt 0:01:22]} ({Predecessor:} 10. Qd2 e6 11. O-O Nc6 12. Rad1 Na5 13. Be2 Nd5 14. Na4 Qb4 15. Qxb4 Nxb4 16. Be7 Nxa2 17. Bxf8 Bxf8 {1-0 Oliveros,C (2021)-Machado,F (1792) Cali Region-ch 2017 (6)}) 10... Nc6 {[%emt 0:02:17]} 11. Rd1 {[%emt 0:00:31]} Rd8 {[%emt 0:06:17]} (11... Na5 $1 $11) 12. O-O $1 {[%emt 0:00:52]} Na5 {[%emt 0:05:18]} 13. Rfe1 {[%emt 0:04:50]} Nxc4 {[%emt 0:01:16]} 14. Qxc4 {[%emt 0:00:12]} Be6 {[%emt 0:00:17]} 15. Qe2 h6 {[%emt 0:03:01]} 16. Be3 {[%emt 0:12:48]} Nd5 {[%emt 0:00:53]} 17. Na4 {[%emt 0:02:45]} Qc6 {[%emt 0:03:40]} 18. Nc5 {[%emt 0:00:50]} Nxe3 {[%emt 0:00:07]} 19. Nxe6 {[%emt 0:02:38]} (19. fxe3 $11 Rac8 20. b3) 19... Nxd1 {[%emt 0:00:29]} ({Don't play} 19... Qxe6 20. Qxe3 Qxa2 21. Qxe7 $11) 20. Nxd8 {[%emt 0:00:12]} Rxd8 {[%emt 0:00:04]} 21. Rxd1 {[%emt 0:01:19]} e6 {[%emt 0:00:05]} 22. Rd2 {[%emt 0:05:39]} Qd5 {[%emt 0:06:24]} 23. a3 {[%emt 0:01:03]} b5 {[%emt 0:01:17]} 24. Qe3 {[%emt 0:08:13]} Rc8 {[%emt 0:09:31]} 25. Ne5 {[%emt 0:03:12]} Rc7 {[%emt 0:02:30]} (25... a5 $15) 26. Qf4 {[%emt 0:01:58]} g5 {[%emt 0:00:13]} 27. Qe3 {[%emt 0:01:16]} f6 {[%emt 0:02:27]} 28. Nd3 {[%emt 0:02:12]} Rc4 {[%emt 0:12:54]} 29. Nc5 {[%emt 0:02:36]} Kf7 {[%emt 0:00:18]} ({Don't take} 29... Rc1+ 30. Kh2 $14) 30. Re2 {[%emt 0:02:12]} e5 {[%emt 0:02:15]} 31. Nb3 {[%emt 0:00:20]} Kg8 {[%emt 0:05:18]} 32. dxe5 {[%emt 0:00:27]} fxe5 {[%emt 0:13:35]} 33. Rd2 {[%emt 0:00:12]} Qa8 {[%emt 0:00:08]} 34. Nc5 {[%emt 0:04:34]} (34. Rd7 $16) 34... Qc6 {[%emt 0:00:37]} 35. Rd8+ {[%emt 0:07:08]} Kh7 {[%emt 0:00:37]} 36. Nd7 {[%emt 0:00:58]} e4 {[%emt 0:01:28]} 37. Qxa7 {[%emt 0:01:11]} Rc1+ {[%emt 0:02:20]} 38. Kh2 {[%emt 0:00:04]} Kg6 {[%emt 0:00:32]} 39. Nb6 {[%emt 0:10:29]} Be5+ {[%emt 0:01:31]} 40. g3 {[%emt 0:01:54]} Bc7 {[%emt 0:00:12]} 41. Nd7 {[%emt 0:05:36]} e3 {[%emt 0:00:45]} 42. Rg8+ {[%emt 0:00:39]} Kh7 {[%emt 0:01:30]} 43. Rh8+ {[%emt 0:01:05]} Kxh8 {[%emt 0:01:04]} 44. Qd4+ {[%emt 0:00:03]} Kg8 {[%emt 0:00:15]} 45. Qd5+ {[%emt 0:01:01]} Qxd5 {[%emt 0:00:09]} 46. Nf6+ {[%emt 0:00:04]} Kf7 {[%emt 0:00:04]} 47. Nxd5 {[%emt 0:00:04]} e2 {[%emt 0:00:03]} 0-1

[Event "Czech Youth Championship Open 2023"]
[Site "Teplice"]
[Date "2023.03.15"]
[Round "6.3"]
[White "Pressler, Tobias"]
[Black "Pycha, Patrik"]
[Result "0-1"]
[ECO "D35"]
[WhiteElo "2096"]
[BlackElo "2029"]
[Annotator "TA"]
[PlyCount "60"]
[EventDate "2023.03.09"]
[EventType "swiss"]
[EventCountry "CZE"]
[SourceTitle "playchess.com"]
[Source "ChessBase"]
[SourceQuality "1"]
[TimeControl "5400+30"]

{[%evp 16,60,24,14,29,-28,-32,-23,-25,-43,-45,-47,-35,-66,-54,-61,-22,-104,-87,-108,-101,-170,-166,-188,-183,-182,-131,-130,-130,-123,-137,-135,-135,-226,-226,-226,-224,-235,-231,-229,-229,-354,-341,-340,-336,-636,-395]} 1. d4 {[%emt 0:00:33]} Nf6 {[%emt 0:03:56]} 2. c4 {[%emt 0:00:06]} e6 {[%emt 0:00:04]} 3. Nc3 {[%emt 0:00:19]} d5 {[%emt 0:00:05]} 4. cxd5 {[%emt 0:00:32]} exd5 {[%emt 0:00:05]} 5. Bg5 {[%emt 0:00:34]} Be7 {[%emt 0:00:05]} 6. e3 {[%emt 0:00:25]} c6 {[%emt 0:00:08]} 7. Nf3 {[%emt 0:00:34]} Nbd7 {[%emt 0:00:06][%cal Bb8d7,Bd7f6,Bf6g4][%mdl 32]} 8. Bd3 {[%emt 0:01:19]} h6 {[%emt 0:00:14] 8...Ne4 is the modern continuation.} 9. Bf4 {[%emt 0:00:17]} Nh5 {[%emt 0:00:53] D35: Queen's Gambit Declined: Exchange Variation.} 10. Bg3 {[%emt 0:02:58]} (10. Be5 $142) 10... Nxg3 $11 {[%emt 0:00:09]} 11. hxg3 {[%emt 0:00:08]} Nf6 {[%emt 0:01:00] Black has an edge.} 12. Ne5 {[%emt 0:00:51]} Bd6 {[%emt 0:01:09]} 13. f4 {[%emt 0:05:21] [#]} Qe7 $146 {[%emt 0:01:30]} ({Predecessor:} 13... Qb6 14. Qd2 Ng4 15. Rc1 a5 16. a3 Bxe5 17. fxe5 Be6 18. Na4 Qd8 19. Qe2 Qg5 {0-1 Kouatly,B-Fries Nielsen,N Berlin U20 7576 1976 (6)}) 14. Qd2 {[%emt 0:07:28]} Bd7 {[%emt 0:01:59]} 15. a3 {[%emt 0:03:49]} Ng4 {[%emt 0:03:31][%cal Rd6e5]} 16. Qe2 {[%emt 0:06:18]} (16. O-O-O $11 {keeps the balance.}) 16... Bxe5 $17 {[%emt 0:06:04]} 17. fxe5 {[%emt 0:03:07]} O-O {[%emt 0:14:11]} 18. Rf1 {[%emt 0:04:40] [#]} (18. e4 $17 f6 19. e6 Qxe6 20. exd5) 18... Qg5 $1 $19 {[%emt 0:02:14]} 19. Rf4 {[%emt 0:21:55]} f6 {[%emt 0:02:57]} 20. exf6 {[%emt 0:00:05]} Rxf6 {[%emt 0:00:29]} ({Worse is} 20... Nxf6 21. Kd2 $17) ({Black should play} 20... Rae8 $19 21. e4 Nxf6) 21. O-O-O $17 {[%emt 0:01:45]} Re8 {[%emt 0:00:50][%mdl 64] Deflection} 22. e4 {[%emt 0:01:26]} Rxf4 {[%emt 0:03:45]} 23. gxf4 {[%emt 0:00:07]} Qxf4+ {[%emt 0:00:06]} 24. Kb1 {[%emt 0:00:04] [#]} (24. Qd2 $17 {keeps fighting.} Qxd2+ 25. Rxd2) 24... dxe4 $1 $19 {[%emt 0:05:03]} 25. Nxe4 {[%emt 0:01:30]} Ne3 {[%emt 0:08:52]} 26. g3 {[%emt 0:06:03] [#]} Bg4 $1 {[%emt 0:00:34]} 27. Qd2 {[%emt 0:00:15] White is weak on the light squares} Qf3 {[%emt 0:01:25]} 28. Nd6 {[%emt 0:02:07]} (28. Re1 $142 Rxe4 29. Bxe4 Qxe4+ 30. Kc1) 28... Nxd1 {[%emt 0:17:01]} ({And not} 28... Qxd1+ 29. Qxd1 Nxd1 30. Nxe8 $19) (28... Qxg3 $2 {perishes.} 29. Re1 Qxd6 30. Rxe3 Rxe3 31. Qxe3 $19) 29. Nxe8 {[%emt 0:00:21]} Qxg3 {[%emt 0:02:10]} 30. Be2 $2 {[%emt 0:11:00]} (30. Bc4+ Kf8 31. Nf6 gxf6 32. Qxh6+ Ke7 33. Qh7+ Kd8 34. Qxb7) 30... Qe3 {[%emt 0:02:03] Weighted Error Value: White=0.49/Black=0.07 (flawless)} 0-1

[Event "Czech Youth Championship Open 2023"]
[Site "Teplice"]
[Date "2023.03.15"]
[Round "6.4"]
[White "Sadil, Antonin"]
[Black "Matejovsky, Ondrej"]
[Result "1/2-1/2"]
[ECO "C43"]
[WhiteElo "1683"]
[BlackElo "1931"]
[Annotator "TA"]
[PlyCount "46"]
[EventDate "2023.03.09"]
[EventType "swiss"]
[EventCountry "CZE"]
[SourceTitle "playchess.com"]
[Source "ChessBase"]
[SourceQuality "1"]
[TimeControl "5400+30"]

{[%evp 17,46,31,32,26,36,14,6,25,39,8,10,9,11,16,54,0,12,0,42,-16,10,-38,-20,-70,-56,-54,0,-83,0,-60,0]} 1. e4 {[%emt 0:00:41]} e5 {[%emt 0:00:09]} 2. Nf3 {[%emt 0:00:18]} Nf6 {[%emt 0:00:09]} 3. d4 {[%emt 0:00:16]} Nxe4 {[%emt 0:00:22]} 4. Bd3 {[%emt 0:00:13]} d5 {[%emt 0:00:33]} 5. Nxe5 {[%emt 0:00:38]} Bd6 {[%emt 0:03:23]} 6. O-O {[%emt 0:00:14]} O-O {[%emt 0:00:57]} 7. c4 {[%emt 0:00:22]} c6 {[%emt 0:01:26]} 8. Nc3 {[%emt 0:00:20]} Nxc3 {[%emt 0:05:17]} 9. bxc3 {[%emt 0:00:10]} Nd7 {[%emt 0:04:26]} 10. f4 {[%emt 0:01:15] 10.Nxd7 might become the main line. C43: Petroff Defence: 3 d4.} ({Reject} 10. Qh5 g6 11. Qe2 Re8 $17) (10. Nxd7 {looks sharper.} Bxd7 11. cxd5 cxd5 12. Qh5) 10... Nf6 11. Qf3 {[%emt 0:01:26]} dxc4 {[%emt 0:13:57]} 12. Bxc4 {[%emt 0:02:18] The position is equal.} Bf5 {[%emt 0:05:45] [#]} 13. g4 $146 {[%emt 0:02:02]} ({Predecessor:} 13. Bd2 Be4 14. Qh3 Bd5 15. Bd3 Be4 16. Rae1 Bxd3 17. Qxd3 c5 18. d5 Bxe5 19. Rxe5 {1-0 Ajay,K (2214)-Foo,J (1731) World ol U16 2019 (5.11)}) 13... Be4 {[%emt 0:03:48]} 14. Qe3 {[%emt 0:01:01] [#] g5 would be deadly.} Bd5 {[%emt 0:16:57] And now ...Bxe5 would win.} 15. Bd3 {[%emt 0:00:31]} Qc8 {[%emt 0:04:48]} 16. h3 {[%emt 0:05:48]} (16. g5 $14 Nh5 17. c4 Bxe5 {[%mdl 64] Remove Defender} 18. fxe5 (18. cxd5 Qg4+ 19. Kh1 Bxd4 $11) 18... Qg4+ 19. Kf2) 16... b5 {[%emt 0:03:16]} 17. Re1 {[%emt 0:08:07]} Nd7 {[%emt 0:08:14]} 18. Qg3 {[%emt 0:02:30]} (18. Bf5 $14 Bxe5 19. fxe5) 18... Re8 {[%emt 0:04:33]} 19. Qh4 {[%emt 0:01:46]} (19. g5 $11) 19... Nf8 $15 {[%emt 0:00:47] Hoping for ...f6.} 20. Bf5 {[%emt 0:02:42]} (20. g5 $11) 20... Be6 {[%emt 0:01:38]} 21. Be4 {[%emt 0:01:44]} Bd5 {[%emt 0:00:27] ...Bxe4 is the strong threat.} 22. Bf5 {[%emt 0:00:50]} Be6 {[%emt 0:00:13]} 23. Be4 {[%emt 0:01:26]} Bd5 {Weighted Error Value: White=0.21 (precise) /Black=0.25 (precise)} ({Black should try} 23... f6 $1 $15 24. Nxc6 Bf7) 1/2-1/2

[Event "Czech Youth Championship Open 2023"]
[Site "Teplice"]
[Date "2023.03.15"]
[Round "6.5"]
[White "Mrkvan, Frantisek"]
[Black "Zednicek, Filip"]
[Result "1/2-1/2"]
[ECO "C57"]
[WhiteElo "1727"]
[BlackElo "1885"]
[Annotator "NA RC COMBH"]
[PlyCount "49"]
[EventDate "2023.03.09"]
[EventType "swiss"]
[EventCountry "CZE"]
[SourceTitle "playchess.com"]
[Source "ChessBase"]
[SourceQuality "1"]
[TimeControl "5400+30"]

1. e4 {[%emt 0:00:04]} e5 {[%emt 0:00:06]} 2. Nf3 {[%emt 0:00:23]} Nc6 {[%emt 0:00:06]} 3. Bc4 {[%emt 0:00:05]} Nf6 {[%emt 0:00:25]} 4. Ng5 {[%emt 0:00:41]} d5 {[%emt 0:01:59]} 5. exd5 {[%emt 0:00:09]} Nd4 {[%emt 0:00:37]} 6. c3 {[%emt 0:03:54]} b5 {[%emt 0:00:11]} 7. Bf1 {[%emt 0:00:09]} Nxd5 {[%emt 0:01:45]} 8. cxd4 {[%emt 0:00:12]} Qxg5 {[%emt 0:00:17]} 9. Bxb5+ {[%emt 0:00:15]} Kd8 {[%emt 0:03:17]} 10. O-O {[%emt 0:00:19]} Bg4 {[%emt 0:18:29]} 11. d3 {[%emt 0:19:44]} Qg6 {[%emt 0:04:12]} (11... Nf4 $14 12. f3 (12. Bxf4 Qxf4 13. Qc2 Rb8 $14) 12... Bd7 13. Bxf4 Qxf4 14. Bxd7 Qxd4+ 15. Kh1 Qxd7) 12. f3 {[%emt 0:00:30]} Bh3 {[%emt 0:02:46]} 13. Qc2 {[%emt 0:00:12]} exd4 {[%emt 0:04:37] [#]} 14. Kh1 {[%emt 0:03:45]} (14. Qf2 $1 $16 {[%cal Rf2h4]} Be7 15. Kh1) 14... Nb4 {[%emt 0:13:03]} 15. Qf2 {[%emt 0:01:17]} Qxg2+ {[%emt 0:00:22]} 16. Qxg2 {[%emt 0:00:08]} Bxg2+ {[%emt 0:00:09]} 17. Kxg2 {[%emt 0:00:03]} Nc2 {[%emt 0:00:10]} 18. Rf2 {[%emt 0:00:39]} Nxa1 {[%emt 0:00:02]} 19. b3 {[%emt 0:00:13]} Rb8 {[%emt 0:03:52]} 20. Bc4 {[%emt 0:01:03]} Bb4 {[%emt 0:06:12]} 21. Bb2 {[%emt 0:03:57]} Re8 {[%emt 0:00:19]} 22. Bxa1 {[%emt 0:00:13]} Re1 {[%emt 0:00:29]} 23. Rf1 {[%emt 0:01:01]} Re2+ {[%emt 0:00:09]} 24. Rf2 $11 {[%emt 0:19:24]} Re1 {[%emt 0:00:06]} 25. Rf1 $1 {[%emt 0:00:04]} 1/2-1/2

[Event "Czech Youth Championship Open 2023"]
[Site "Teplice"]
[Date "2023.03.16"]
[Round "7.1"]
[White "Zednicek, Filip"]
[Black "Broz, Petr"]
[Result "0-1"]
[ECO "B14"]
[WhiteElo "1885"]
[BlackElo "1993"]
[Annotator "TA"]
[PlyCount "98"]
[EventDate "2023.03.09"]
[EventType "swiss"]
[EventCountry "CZE"]
[SourceTitle "playchess.com"]
[Source "ChessBase"]
[SourceQuality "1"]
[TimeControl "5400+30"]

{[%evp 12,98,26,0,7,0,42,47,38,33,59,62,142,130,166,54,46,38,39,48,41,39,47,15,12,-75,-20,-18,-15,-79,-70,-99,-95,-90,-82,-88,-84,-111,-108,-113,-82,-112,-100,-112,-117,-114,-115,-258,-100,-100,-100,-111,-104,-149,-64,-71,-64,-83,-47,-183,-174,-242,-229,-228,-237,-240,-225,-202,-93,-99,-9,-16,-10,-79,-41,-33,0,-186,-163,-370,-360,-372,-367,-366,-381,-334,-300,-12839,-12839]} 1. e4 {[%emt 0:00:06]} d5 {[%emt 0:00:05]} 2. exd5 {[%emt 0:00:07]} c6 {[%emt 0:00:04]} 3. d4 {[%emt 0:00:22]} cxd5 {[%emt 0:02:04]} 4. c4 {[%emt 0:00:21]} Nf6 {[%emt 0:01:01]} 5. Nc3 {[%emt 0:00:04]} e6 {[%emt 0:01:29]} 6. Nf3 {[%emt 0:01:18]} Nc6 {[%emt 0:00:20]} 7. Be2 {[%emt 0:10:18]} Bb4 {[%emt 0:03:58] B14: Caro-Kann: Panov-Botvinnik Attack with 5...e6 and 5...g6.} 8. O-O {[%emt 0:00:20]} Bxc3 {[%emt 0:00:05]} 9. bxc3 {[%emt 0:00:05]} O-O {[%emt 0:00:09] White is slightly better.} 10. Bg5 {[%emt 0:04:49]} h6 {[%emt 0:02:27]} 11. Bh4 {[%emt 0:02:49] [#]} Bd7 $146 {[%emt 0:05:21]} (11... b6 $14) ({Predecessor:} 11... Re8 12. Re1 a6 13. Bd3 dxc4 14. Bxc4 b5 15. Bb3 Na5 16. Ne5 Bb7 17. f3 g5 {1-0 Mordido,J (1708)-Santiaguel,J Asia-ch Universities 2018 (2)}) 12. Rb1 {[%emt 0:02:06]} b6 {[%emt 0:00:09]} 13. cxd5 {[%emt 0:05:32]} (13. Qc1 $1 $18) 13... exd5 $14 {[%emt 0:01:42]} 14. Ne5 {[%emt 0:00:33]} g5 {[%emt 0:00:17]} 15. Nxd7 {[%emt 0:06:43]} Qxd7 {[%emt 0:02:25]} 16. Bg3 {[%emt 0:00:26]} Ne4 {[%emt 0:00:08]} 17. Qd3 {[%emt 0:02:59]} Na5 {[%emt 0:03:03]} 18. f4 {[%emt 0:06:30]} (18. f3 $11 Nxg3 19. hxg3) 18... f5 {[%emt 0:05:10]} ({Better is} 18... Nc4 $1 $17 19. Be1 Rac8) 19. fxg5 $11 {[%emt 0:02:41]} hxg5 {[%emt 0:00:06]} 20. Be1 {[%emt 0:02:53]} (20. Bf3 $11 {keeps the balance.}) 20... Nc4 $17 {[%emt 0:02:40] Excellent horsemanship.} 21. Bd1 {[%emt 0:18:30]} Rac8 {[%emt 0:05:10]} 22. Bb3 {[%emt 0:07:53]} Kg7 {[%emt 0:01:17]} 23. Bxc4 {[%emt 0:05:11]} Rxc4 {[%emt 0:00:11]} 24. Qh3 {[%emt 0:04:12]} Kg6 {[%emt 0:01:59]} 25. Qd3 {[%emt 0:04:17]} Rfc8 {[%emt 0:04:36]} 26. Rb3 {[%emt 0:04:37]} Qe6 {[%emt 0:02:19]} 27. Bd2 {[%emt 0:01:40]} R8c7 {[%emt 0:05:24]} 28. g3 {[%emt 0:02:15]} Qc8 {[%emt 0:00:20]} 29. Rc1 {[%emt 0:01:58]} (29. Rb2 $17) 29... Qa6 $2 {[%emt 0:02:51]} (29... f4 $1 $19 {[%cal Rf4g3] has better winning chances. ...fxg3 is the strong threat.} 30. gxf4 Rh7) 30. Rc2 {[%emt 0:01:14] White is weak on the light squares} Qa4 {[%emt 0:01:28]} (30... Rg7 {simplifies} 31. Be1 Qc8 32. Rbb2 g4) 31. h4 {[%emt 0:01:09]} Qe8 {[%emt 0:03:37]} 32. hxg5 {[%emt 0:00:26] [#]} (32. Bxg5 $2 Nxg5 33. hxg5 Qe4 34. Qxe4 dxe4 $19) 32... Rh7 {[%emt 0:00:14] Black is much more active.} ({Black should try} 32... Nxd2 $1 $17 33. Rxd2 (33. Qxd2 $2 {loses.} Qe4 $19) 33... Qe4) 33. Bf4 $15 {[%emt 0:00:54]} Nxg5 {[%emt 0:00:29]} (33... Qe7 $5 {[%cal Re4c5]} 34. Rb1 Rh3 $17) 34. Be5 {[%emt 0:00:28]} Ne4 {[%emt 0:01:15]} 35. Rg2 {[%emt 0:00:46]} (35. Rb4 $15) 35... Qe7 $19 {[%emt 0:01:50]} 36. Qf3 {[%emt 0:00:47]} (36. Qe2 {was worth a try.}) 36... Qg5 {[%emt 0:00:15] ( -> ...Qc1+)} 37. Bf4 {[%emt 0:00:34] Repels Qc1+} Qg4 {[%emt 0:00:07]} 38. Qxg4+ {[%emt 0:00:37]} fxg4 {[%emt 0:00:05]} 39. Rc2 {[%emt 0:00:29]} Rh8 {[%emt 0:00:34]} (39... Rc8 $19 {and Black stays clearly on top. aiming for ...Rch8.} 40. Rg2 Kf5) 40. Ra3 $17 {[%emt 0:00:17] [#]} a5 {[%emt 0:00:58]} ({Black should play} 40... Ra8 $1 $17) 41. Rb3 $11 {[%emt 0:00:04]} Rc6 $36 {[%emt 0:01:34][%mdl 2048] White is under pressure.} 42. Rcb2 {[%emt 0:00:46]} (42. c4 $11 {remains equal.}) 42... Rhc8 {[%emt 0:01:36]} (42... Nxc3 $5 {[%cal Rb6b5]} 43. Rxb6 Rxb6 44. Rxb6+ Kf5 $17) 43. Rxb6 {[%emt 0:00:10]} Nxc3 {[%emt 0:00:06][%cal Oc3e2] Hoping for ...Ne2+!} 44. Rxc6+ $2 {[%emt 0:00:25]} (44. Rb7 $11 {and White is okay.}) 44... Rxc6 $15 {[%emt 0:00:08] KRB-KRN} 45. Rc2 $2 {[%emt 0:00:01]} (45. Bd2) 45... Kf5 $19 {[%emt 0:00:45]} 46. Rb2 {[%emt 0:02:07]} Ke4 {[%emt 0:00:16]} 47. Be5 {[%emt 0:00:01]} Rc4 {[%emt 0:00:54]} 48. a3 {[%emt 0:00:58]} Kd3 {[%emt 0:01:01]} 49. Bc7 $2 {[%emt 0:00:36]} (49. Rb3) 49... Rxc7 {[%emt 0:00:18] What a fight! Excellently played by Broz!   Weighted Error Value: White=0.46/Black=0.23 (precise)} 0-1

[Event "Czech Youth Championship Open 2023"]
[Site "Teplice"]
[Date "2023.03.16"]
[Round "7.2"]
[White "Matejovsky, Ondrej"]
[Black "Mrkvan, Frantisek"]
[Result "1-0"]
[ECO "B30"]
[WhiteElo "1931"]
[BlackElo "1727"]
[Annotator "TA"]
[PlyCount "93"]
[EventDate "2023.03.09"]
[EventType "swiss"]
[EventCountry "CZE"]
[SourceTitle "playchess.com"]
[Source "ChessBase"]
[SourceQuality "1"]
[TimeControl "5400+30"]

{[%evp 12,93,17,15,54,53,47,42,39,44,46,16,21,10,46,10,14,-5,22,17,60,0,111,48,193,189,298,287,275,124,119,91,481,495,412,293,289,283,277,272,272,270,273,249,246,242,314,263,297,296,303,301,350,331,448,458,470,465,469,468,493,471,537,504,603,606,626,631,612,524,537,443,536,0,520,513,823,831,824,769,771,756,680,658]} 1. e4 {[%emt 0:00:03]} c5 {[%emt 0:00:17]} 2. Nf3 {[%emt 0:00:12]} Nc6 {[%emt 0:00:21]} 3. Bb5 {[%emt 0:00:21]} e6 {[%emt 0:00:34]} 4. O-O {[%emt 0:00:55]} Nge7 {[%emt 0:03:14]} 5. c3 {[%emt 0:05:33]} a6 {[%emt 0:00:23]} 6. Ba4 {[%emt 0:01:39]} b5 {[%emt 0:00:19]} 7. Bc2 {[%emt 0:00:03]} Ng6 {[%emt 0:00:10] B30: Sicilian: 2...Nc6 3 Bb5, lines without ...g6.} 8. d4 {[%emt 0:02:13]} cxd4 {[%emt 0:01:04]} 9. cxd4 {[%emt 0:02:29]} Nb4 {[%emt 0:02:08] White is slightly better.} 10. Bb3 {[%emt 0:01:50] [#]} Nc6 $146 {[%emt 0:07:21]} ({Predecessor:} 10... d5 11. e5 Nc6 12. Nc3 Be7 13. g3 O-O 14. h4 Re8 15. h5 Nf8 16. Bf4 Bd7 {1-0 Eswaran,A (2244)-Xie,B (2049) PNWCC Online Masters rapid 2020 (9.25)}) 11. Be3 {[%emt 0:07:16]} Na5 {[%emt 0:07:53]} 12. Nbd2 {[%emt 0:08:24]} Nxb3 13. Qxb3 {[%emt 0:03:18]} Be7 {[%emt 0:10:25]} 14. a4 {[%emt 0:12:30]} Rb8 {[%emt 0:05:39]} 15. d5 {[%emt 0:06:10]} Bd6 {[%emt 0:11:02]} 16. a5 {[%emt 0:10:00]} (16. Qc3 $14) 16... Bc7 {[%emt 0:03:04]} (16... Bb7 $11 {keeps the balance.}) 17. Qc3 {[%emt 0:03:05]} (17. Qb4 $16 {d6 is the strong threat.} d6 18. Nd4) 17... f6 {[%emt 0:04:36]} ({Black should try} 17... O-O $14) 18. Rfc1 {[%emt 0:07:15]} Bd6 {[%emt 0:01:07]} (18... Bf4 {keeps fighting.} 19. Bb6 Qe7) 19. Bb6 $18 {[%emt 0:06:16]} Qe7 {[%emt 0:02:29] [#]} 20. Bc7 {[%emt 0:02:40]} (20. e5 $1 $18 {[%cal Re5d6]} Bxe5 21. Nxe5 fxe5 22. Qc7) 20... Ra8 $16 {[%emt 0:04:38]} 21. dxe6 {[%emt 0:01:23] Hoping for Bxd6. White is more active.} Qxe6 {[%emt 0:00:45][%mdl 8192]} (21... Bxc7 $16 {is more resistant.} 22. Qxc7 O-O) 22. Nd4 $18 {[%emt 0:01:29]} Be5 {[%emt 0:00:32]} 23. Nxe6 {[%emt 0:01:43] Excellent horsemanship.} Bxc3 {[%emt 0:00:09]} 24. Nxg7+ {[%emt 0:00:23]} ({Not} 24. bxc3 dxe6 25. c4 Bd7 $14) 24... Kf7 {[%emt 0:00:09]} 25. Rxc3 {[%emt 0:00:28]} Kxg7 {[%emt 0:00:06] Black is weak on the dark squares} 26. Nb3 {[%emt 0:01:15]} Bb7 {[%emt 0:01:07]} 27. Nc5 {[%emt 0:04:20]} Bc6 {[%emt 0:00:43]} 28. Rd1 {[%emt 0:00:49]} Ra7 {[%emt 0:00:21]} 29. Bg3 {[%emt 0:01:03]} h5 {[%emt 0:01:05]} 30. h4 {[%emt 0:00:41]} Re8 {[%emt 0:00:26]} 31. f3 {[%emt 0:00:28]} Re7 {[%emt 0:01:03]} 32. Rcd3 {[%emt 0:00:43]} Nf8 {[%emt 0:00:54]} 33. Bd6 {[%emt 0:00:27]} Rf7 {[%emt 0:00:10]} 34. Bxf8+ {[%emt 0:00:54]} Kxf8 {[%emt 0:00:08]} 35. b4 {[%emt 0:00:34]} Re7 {[%emt 0:01:20]} 36. Rd6 {[%emt 0:00:36]} Kf7 {[%emt 0:00:22]} 37. Kf2 {[%emt 0:00:55]} Kg7 {[%emt 0:00:32]} 38. Nb3 {[%emt 0:00:35]} Rc7 {[%emt 0:00:58]} 39. Nd4 {[%emt 0:00:31]} Kf7 {[%emt 0:00:13]} 40. Nf5 {[%emt 0:01:39]} Re8 {[%emt 0:01:30]} 41. Ne3 {[%emt 0:01:15]} Re7 {[%emt 0:00:26]} 42. Nf5 {[%emt 0:02:20]} Re8 $1 {[%emt 0:00:25]} 43. Ke3 {[%emt 0:00:25] White is clearly winning.} Ra7 {[%emt 0:01:05] [#]} (43... Re6 $142 44. Kf4 Kg6) 44. Rxc6 $1 {[%emt 0:00:43][%mdl 576] Clearance} dxc6 {[%emt 0:00:09]} 45. Nd6+ {[%emt 0:00:03]} Ke7 {[%emt 0:00:11]} 46. Nxe8 {[%emt 0:00:03]} Kxe8 {[%emt 0:00:09]} 47. Rd6 {[%emt 0:00:10][%csl LRc6,LRf6] Weighted Error Value: White=0.33/Black=0.49} 1-0